bitfinex-derivatives/quotes_ETHF0:USTF0_20250612
["timestamp","ask_amount","ask_price","bid_price","bid_amount"]
[1749706820203,2.02648334,2763.2,2763.1,20.815]
[1749706820702,1.44755334,2763.2,2762.9,0.6]
[1749706820906,0.57897,2763.0,2762.9,0.6]
[1749706821203,2.02652334,2763.0,2762.9,0.6]
[1749706821600,2.02652334,2763.0,2762.9,17.144]
[1749706821800,2.02652334,2763.0,2762.9,0.6]
[1749706822006,0.57912,2762.3,2762.2,1.0]
[1749706822207,2.02708914,2762.3,2762.2,1.0]
[1749706822404,5.23488914,2762.3,2762.2,1.0]
[1749706823207,1.44796914,2762.3,2762.2,1.0]
[1749706823603,1.44796914,2762.3,2762.2,1.57914]
[1749706824405,2.02708914,2762.3,2762.2,1.0]
[1749706824905,1.44796914,2762.3,2762.2,1.0]
[1749706825200,2.02708914,2762.3,2762.2,1.0]
[1749706825607,0.5792,2761.9,2761.8,3.2078]
[1749706825811,2.02716914,2761.9,2761.8,3.2078]
[1749706826306,0.57922,2761.8,2761.7,1.16954]
[1749706826510,1.44796914,2761.8,2761.7,17.1393]
[1749706826708,2.02718914,2761.8,2761.7,17.1393]
[1749706826909,2.02718914,2761.8,2761.7,0.5903]
[1749706826910,2.31678914,2761.8,2761.7,0.5903]
[1749706827211,2.31678914,2761.8,2761.7,17.1423]
[1749706829710,2.31678914,2761.8,2761.7,16.552]
[1749706830612,2.31708704,2761.8,2761.7,16.552]
[1749706830810,2.3170872,2761.8,2761.7,16.552]
[1749706831505,0.57925,2761.7,2761.6,4.273]
[1749706831712,2.0275172,2761.7,2761.6,20.827]
[1749706832511,2.0275172,2761.7,2761.6,4.273]
[1749706832717,4.6560672,2761.7,2761.3,16.554]
[1749706832911,4.6560672,2761.7,2761.4,0.57929]
[1749706832912,0.5793,2761.5,2761.4,0.57929]
[1749706833216,1.4482672,2761.5,2761.3,17.1836]
[1749706833413,1.4482672,2761.4,2761.3,17.76293]
[1749706833612,2.0275772,2761.4,2761.3,17.1836]
[1749706833808,0.57933,2761.3,2761.2,4.273]
[1749706834010,0.57933,2761.3,2761.2,21.40735]
[1749706834011,2.0275972,2761.3,2761.2,21.40735]
[1749706834209,0.57935,2761.2,2761.1,1.20846]
[1749706834415,1.4482672,2761.3,2761.1,1.20846]
[1749706834416,0.57934,2761.3,2761.2,4.85234]
[1749706834716,2.02782018,2761.3,2761.2,4.85234]
[1749706835318,1.44848018,2761.3,2761.2,4.85234]
[1749706835618,1.44848018,2761.3,2761.2,21.40734]
[1749706835808,1.44848018,2761.3,2761.2,22.69854]
[1749706836207,1.44848018,2761.3,2761.2,27.69854]
[1749706836411,0.2896,2761.8,2761.7,0.57924]
[1749706836621,0.2896,2761.8,2761.7,21.40724]
[1749706841921,3.8497,2762.5,2762.3,0.5791]
[1749706842118,0.6411172,2762.4,2762.3,0.5791]
[1749706842427,0.6411172,2762.4,2762.3,17.1361]
[1749706843129,0.5791,2762.4,2762.3,17.1361]
[1749706843420,0.5791,2762.4,2762.3,16.557]
[1749706843925,0.5791,2762.4,2762.3,17.13612]
[1749706844319,0.5791,2762.4,2762.3,16.557]
[1749706844923,3.8497,2762.5,2762.3,16.557]
[1749706845122,3.2078,2762.5,2762.4,0.5791]
[1749706845424,0.58449114,2762.6,2762.5,0.57908]
[1749706845623,0.57908,2762.5,2762.4,0.57908]
[1749706846025,0.5791,2762.4,2762.3,18.4111]
[1749706846323,0.5791,2762.4,2762.1,0.00543114]
[1749706846324,0.57914,2762.2,2762.1,0.00543114]
[1749706847028,1.80644,2762.2,2762.1,0.00543114]
[1749706848023,0.57914,2762.2,2762.1,0.58458114]
[1749706848429,1.98429749,2762.2,2762.1,0.00543114]
[1749706848830,1.40515749,2762.2,2762.1,0.58459114]
[1749706849028,1.40515749,2762.2,2762.1,1.19059114]
[1749706850134,1.40515749,2762.2,2762.1,3.08469114]
[1749706851128,1.40515749,2762.2,2762.1,1.83769114]
[1749706851328,1.40515749,2762.2,2762.1,22.68969114]
[1749706852035,1.40515749,2762.2,2762.1,23.93669114]
[1749706853124,1.46717469,2762.2,2762.1,23.93669114]
[1749706856240,1.40515749,2762.2,2762.1,23.93669114]
[1749706856939,1.40515749,2762.2,2762.1,28.93669114]
[1749706857438,1.40515749,2762.2,2762.1,1.83769114]
[1749706857640,1.40515749,2762.2,2762.1,22.67569114]
[1749706858335,1.40515749,2762.2,2762.1,22.0911]
[1749706858731,1.40515749,2762.2,2762.1,22.67026]
[1749706859437,0.57911,2762.4,2762.3,0.57912]
[1749706859739,1.97298202,2762.4,2762.3,0.57912]
[1749706860535,0.57913,2762.3,2762.2,0.57913]
[1749706860731,1.97300202,2762.3,2762.2,17.15313]
[1749706860937,4.60167202,2762.3,2761.6,3.2078]
[1749706861240,0.57919,2762.0,2761.9,0.57918]
[1749706861638,1.18917,2762.1,2762.0,0.57918]
[1749706861842,2.58284772,2762.1,2762.0,0.57918]
[1749706864344,1.18917,2762.1,2762.0,0.57918]
[1749706864944,0.57919,2762.0,2761.9,0.57919]
[1749706865146,0.57922,2761.9,2761.8,0.57922]
[1749706865744,0.57922,2761.9,2761.8,17.14522]
[1749706865940,1.8616,2762.0,2761.9,0.5792]
[1749706866141,0.57921,2761.9,2761.8,0.57921]
[1749706866340,1.86161,2761.9,2761.8,4.86221]
[1749706866647,1.86161,2761.9,2761.8,21.43221]
[1749706867145,1.2824,2761.9,2761.8,21.43221]
[1749706867645,0.61,2762.1,2762.0,0.57918]
[1749706868043,3.2078,2762.7,2762.5,0.57908]
[1749706868243,1.39636695,2762.6,2762.5,21.43508]
[1749706868542,0.00543114,2762.6,2762.5,21.43508]
[1749706868748,0.58449114,2762.6,2762.5,21.43508]
[1749706868936,0.58449114,2762.6,2762.5,20.856]
[1749706869134,3.15001865,2762.6,2762.5,20.856]
[1749706869335,3.15001865,2762.6,2762.5,21.43508]
[1749706869844,3.15001865,2762.6,2762.5,20.856]
[1749706870945,1.76019114,2762.6,2762.5,21.43508]
[1749706871749,1.76019114,2762.6,2762.5,20.856]
[1749706872141,3.14982809,2762.6,2762.5,20.856]
[1749706877552,1.76019114,2762.6,2762.5,21.43508]
[1749706878745,1.76019114,2762.6,2762.5,20.856]
[1749706878953,3.14808519,2762.6,2762.5,20.856]
[1749706879453,3.77248519,2762.6,2762.5,20.856]
[1749706880556,3.83450239,2762.6,2762.5,20.856]
[1749706881655,3.77248519,2762.6,2762.5,20.837]
[1749706882157,0.57916,2762.1,2762.0,3.2078]
[1749706882358,3.2078,2762.3,2761.7,4.282]
[1749706882559,1.40373523,2762.2,2762.1,0.57916]
[1749706883251,3.78692,2762.3,2762.2,0.57914]
[1749706883447,4.61151953,2762.3,2762.2,0.57914]
[1749706883652,5.19063953,2762.3,2762.2,16.555]
[1749706883960,5.19063953,2762.3,2762.2,17.13414]
[1749706884258,5.19063953,2762.3,2762.2,16.555]
[1749706884954,5.19063953,2762.3,2762.2,17.13414]
[1749706885256,5.19063953,2762.3,2762.2,16.555]
[1749706887761,0.57914,2762.2,2762.1,4.282]
[1749706887961,2.62345953,2762.2,2762.1,4.282]
[1749706888162,3.91015953,2762.2,2762.1,20.838]
[1749706888758,3.91015953,2762.2,2762.1,4.282]
[1749706888951,3.91015953,2762.2,2762.1,20.837]
[1749706889353,0.57918,2762.0,2761.9,4.282]
[1749706889558,0.5792,2761.9,2761.8,20.843]
[1749706889756,1.2711,2761.9,2761.8,17.14022]
[1749706890361,1.8503,2761.9,2761.8,16.561]
[1749706890557,0.57929,2761.5,2761.4,41.4361]
[1749706890757,5.8920017,2761.9,2761.5,16.564]
[1749706890758,0.6452,2761.8,2761.5,16.564]
[1749706891065,0.57927,2761.6,2761.5,17.14327]
[1749706891565,0.57927,2761.6,2761.5,16.564]
[1749706892265,0.57929,2761.5,2761.4,0.6361]
[1749706892561,1.9163,2761.8,2761.3,3.2078]
[1749706892562,0.57931,2761.4,2761.3,3.2078]
[1749706892960,0.57931,2761.4,2761.3,24.0568]
[1749706893377,0.57931,2761.4,2761.3,4.279]
[1749706893563,1.99198203,2761.4,2761.3,20.848]
[1749706894966,1.99198203,2761.4,2761.3,20.846]
[1749706895160,3.78378203,2761.4,2761.3,20.846]
[1749706895356,3.78378203,2761.4,2761.3,4.279]
[1749706895567,3.78378203,2761.4,2761.3,20.846]
[1749706895760,3.78378203,2761.4,2761.3,20.849]
[1749706895961,0.57937,2761.1,2761.0,26.159]
[1749706896166,0.57937,2761.1,2761.0,42.728]
[1749706896355,3.78716,2761.2,2761.1,0.57937]
[1749706896561,0.57937,2761.1,2761.0,43.30738]
[1749706897069,0.57937,2761.1,2761.0,26.159]
[1749706897261,0.57937,2761.1,2761.0,42.729]
[1749706898362,1.75537,2761.1,2761.0,42.729]
[1749706899871,1.75537,2761.1,2761.0,43.30839]
[1749706900070,0.57937,2761.1,2761.0,43.30839]
[1749706900259,0.57937,2761.1,2761.0,42.729]
[1749706901467,0.57937,2761.1,2761.0,43.30839]
[1749706901670,1.7719,2761.4,2761.0,42.729]
[1749706901966,0.57934,2761.3,2761.2,0.57934]
[1749706902171,3.2078,2761.8,2761.2,16.56]
[1749706902371,0.57928,2761.6,2761.5,0.57928]
[1749706902573,0.57928,2761.6,2761.5,17.14528]
[1749706902769,0.57928,2761.6,2761.5,16.566]
[1749706903368,0.6235,2761.7,2761.5,16.566]
[1749706903369,0.6235,2761.7,2761.6,0.57926]
[1749706903665,0.57924,2761.7,2761.6,0.57926]
[1749706904374,3.2078,2761.8,2761.6,0.57926]
[1749706904765,3.2078,2761.8,2761.7,0.57924]
[1749706905174,3.78702,2761.8,2761.7,0.57924]
[1749706905469,0.6235,2761.9,2761.7,0.57924]
[1749706905669,0.6235,2761.9,2761.8,0.57922]
[1749706905867,4.4804,2762.2,2761.9,0.5792]
[1749706906175,0.57916,2762.1,2762.0,16.569]
[1749706910070,0.5792,2761.9,2761.8,0.6291]
[1749706910273,0.57924,2761.7,2761.6,3.2078]
[1749706910471,0.57924,2761.7,2761.6,20.894]
[1749706910673,0.57931,2761.5,2761.4,3.2078]
[1749706910873,0.57927,2761.6,2761.4,21.47731]
[1749706911177,0.57927,2761.6,2761.5,0.57929]
[1749706913183,1.2293,2761.9,2761.4,20.898]
[1749706913378,0.2896,2761.8,2761.6,0.57925]
[1749706913681,0.57926,2761.6,2761.4,24.1058]
[1749706913882,0.2896,2761.8,2761.4,24.1058]
[1749706914073,0.2896,2761.8,2761.7,0.57924]
[1749706915075,0.2896,2761.8,2761.6,0.57925]
[1749706915280,0.86883,2761.8,2761.6,0.57925]
[1749706915483,0.2896,2761.8,2761.6,0.57925]
[1749706916187,0.86884,2761.8,2761.6,0.57925]
[1749706916482,0.86884,2761.8,2761.7,0.57924]
[1749706916682,1.2293,2761.9,2761.6,0.57925]
[1749706916883,0.57925,2761.7,2761.4,25.3615]
[1749706917085,0.57925,2761.7,2761.6,0.57926]
[1749706917385,0.57925,2761.7,2761.5,0.6206]
[1749706917578,0.57924,2761.8,2761.6,17.18125]
[1749706917883,0.57924,2761.7,2761.6,16.602]
[1749706920686,0.57929,2761.5,2761.4,3.2078]
[1749706920988,0.57935,2761.2,2761.1,1.20486]
[1749706921177,0.57935,2761.2,2761.1,4.295]
[1749706921585,0.57935,2761.2,2761.1,20.892]
[1749706924288,0.6413672,2761.2,2761.1,20.892]
[1749706926187,0.6413672,2761.2,2761.1,4.295]
[1749706926578,0.6413672,2761.2,2761.1,20.881]
[1749706926977,1.8130672,2761.2,2761.1,20.881]
[1749706927388,1.75105,2761.2,2761.1,20.881]
[1749706928990,1.75105,2761.2,2761.1,4.295]
[1749706929191,1.75105,2761.2,2761.1,20.891]
[1749706929689,0.6424,2761.4,2761.1,20.891]
[1749706929890,0.6424,2761.4,2761.3,0.57933]
[1749706930394,0.6424,2761.4,2761.2,0.57934]
[1749706930595,0.57934,2761.3,2761.2,0.57934]
[1749706930792,1.22171,2761.4,2761.1,20.891]
[1749706931289,1.9334,2761.7,2761.5,0.57927]
[1749706931591,0.6447,2761.7,2761.6,16.596]
[1749706932388,1.22394,2761.7,2761.6,16.596]
[1749706932889,3.4974,2761.8,2761.7,0.57924]
[1749706933091,0.2896,2761.8,2761.7,0.57924]
[1749706940690,0.57914,2762.2,2761.7,5.07204]
[1749706940895,1.22052,2762.3,2762.1,0.57914]
[1749706941197,1.22052,2762.3,2762.2,20.877]
[1749706943089,0.57922,2761.8,2761.7,3.2078]
[1749706943292,0.57922,2761.8,2761.7,16.595]
[1749706943486,0.57924,2761.7,2761.6,4.295]
[1749706943691,2.37934,2761.7,2761.6,20.89]
[1749706943987,3.8270164,2761.7,2761.6,20.89]
[1749706944799,2.37934,2761.7,2761.6,20.89]
[1749706945495,3.826946,2761.7,2761.6,20.89]
[1749706945688,3.826946,2761.7,2761.6,20.887]
[1749706948496,7.034746,2761.7,2761.6,20.887]
[1749706948693,0.57931,2761.4,2749.1,0.0620172]
[1749706949003,0.57957,2760.2,2759.9,16.801]
[1749706949196,3.2078,2760.2,2760.0,0.5796]
[1749706949397,3.2078,2760.2,2760.1,0.57958]
[1749706949596,0.00543114,2760.3,2760.2,0.57956]
[1749706949796,0.00543114,2760.3,2760.2,4.87456]
[1749706950198,0.00543114,2760.3,2760.2,4.295]
[1749706950497,0.58497114,2760.3,2760.2,4.295]
[1749706950698,0.58497114,2760.3,2760.2,21.218]
[1749706952203,3.79277114,2760.3,2760.2,21.218]
[1749706952905,0.57956,2760.2,2760.1,4.415]
[1749706953106,1.75746,2760.2,2760.1,21.21]
[1749706954306,1.1779,2760.2,2760.1,21.78958]
[1749706954509,1.1779,2760.2,2760.1,21.21]
[1749706954705,1.1779,2760.2,2760.1,21.78958]
[1749706955006,1.75746,2760.2,2760.1,21.212]
[1749706955506,1.1779,2760.2,2760.1,21.79158]
[1749706955705,1.75746,2760.2,2760.1,21.212]
[1749706956611,1.75746,2760.2,2760.1,4.415]
[1749706956812,0.57966,2759.8,2759.7,4.416]
[1749706957110,0.57964,2759.8,2759.7,21.207]
[1749706957504,2.48564,2759.8,2759.7,21.207]
[1749706957913,2.48564,2759.8,2759.7,21.208]
[1749706959311,1.906,2759.8,2759.4,4.99572]
[1749706959613,0.57973,2759.4,2759.3,4.416]
[1749706959814,0.57973,2759.4,2759.3,21.2]
[1749706960018,1.85303,2759.4,2759.3,21.2]
[1749706960314,2.49583,2759.4,2759.3,4.416]
[1749706960512,2.49583,2759.4,2759.3,21.21]
[1749706960811,2.49583,2759.4,2759.3,21.78975]
[1749706961013,2.49583,2759.4,2759.3,21.21]
[1749706961221,2.49584,2759.4,2759.3,16.789]
[1749706961522,1.9161,2759.4,2759.3,17.36875]
[1749706961919,0.57975,2759.3,2759.2,4.416]
[1749706962224,0.57975,2759.3,2759.2,21.205]
[1749706962920,1.79095,2759.3,2759.2,21.205]
[1749706963122,1.2112,2759.3,2759.2,21.205]
[1749706963420,1.2112,2759.3,2759.2,21.78477]
[1749706964021,1.79095,2759.3,2759.2,21.78477]
[1749706964325,1.2112,2759.3,2759.2,21.78477]
[1749706965521,1.79095,2759.3,2759.2,21.78477]
[1749706965722,1.2112,2759.3,2759.2,21.77577]
[1749706965916,3.7513,2759.5,2759.2,21.196]
[1749706966122,3.7513,2759.5,2759.4,0.57973]
[1749706967321,3.7513,2759.5,2759.3,0.6254]
[1749706967524,4.33101,2759.5,2759.3,1.20514]
[1749706967815,3.7513,2759.5,2759.2,4.416]
[1749706968022,4.33101,2759.5,2759.4,16.78]
[1749706969424,0.57975,2759.3,2759.2,4.416]
[1749706969624,0.57975,2759.3,2759.2,21.194]
[1749706971224,0.57975,2759.3,2759.2,21.77377]
[1749706971426,0.57974,2759.4,2759.2,21.77377]
[1749706971728,0.57975,2759.3,2759.2,21.77377]
[1749706972032,3.7513,2759.5,2759.2,21.77377]
[1749706972220,0.57974,2759.4,2759.2,21.77377]
[1749706972418,3.7513,2759.5,2759.2,21.194]
[1749706972622,0.57974,2759.4,2759.2,21.77375]
[1749706973327,0.57975,2759.3,2759.2,21.77375]
[1749706973523,0.57974,2759.4,2759.2,21.77375]
[1749706974527,3.7513,2759.5,2758.9,0.6254]
[1749706974833,1.2717,2759.4,2759.0,21.7648]
[1749706975030,3.2078,2759.2,2759.0,21.185]
[1749706975235,0.57979,2759.1,2759.0,4.418]
[1749706975428,0.57979,2759.1,2759.0,21.183]
[1749706976231,1.22079,2759.1,2759.0,21.76281]
[1749706976432,0.641,2759.1,2759.0,21.76281]
[1749706976832,1.22079,2759.1,2759.0,21.76281]
[1749706977734,1.22079,2759.1,2759.0,21.183]
[1749706978429,2.67038773,2759.1,2759.0,4.418]
[1749706978633,2.67038773,2759.1,2759.0,21.17]
[1749706978931,2.67038773,2759.1,2759.0,21.74981]
[1749706979128,2.67038773,2759.1,2759.0,21.17]
[1749706979734,2.09059773,2759.1,2759.0,21.74981]
[1749706980734,2.67038773,2759.1,2759.0,21.74981]
[1749706981336,2.67038773,2759.1,2759.0,21.74381]
[1749706981836,2.09059773,2759.1,2759.0,21.74381]
[1749706982535,2.67038773,2759.1,2759.0,21.164]
[1749706982834,2.67038773,2759.1,2759.0,21.74381]
[1749706983037,2.67038773,2759.1,2759.0,21.164]
[1749706983234,2.67038773,2759.1,2759.0,4.418]
[1749706983436,2.67038773,2759.1,2759.0,21.159]
[1749706983636,2.67038773,2759.1,2759.0,21.153]
[1749706984233,4.53378773,2759.1,2759.0,21.153]
[1749706984740,4.53378773,2759.1,2759.0,21.15]
[1749706986041,4.53378773,2759.1,2759.0,4.418]
[1749706986443,4.53378773,2759.1,2759.0,21.15]
[1749706987441,3.08419,2759.1,2759.0,21.15]
[1749706987638,4.53389099,2759.1,2759.0,21.15]
[1749706989043,2.72430099,2759.1,2759.0,21.72981]
[1749706989539,3.30409099,2759.1,2759.0,21.72981]
[1749706989843,2.72430099,2759.1,2759.0,21.72981]
[1749706990238,3.30409099,2759.1,2759.0,21.72981]
[1749706990439,3.30409099,2759.1,2759.0,21.15]
[1749706991041,3.30409099,2759.1,2759.0,21.72981]
[1749706991743,3.30409099,2759.1,2759.0,21.15]
[1749706994048,3.30409099,2759.1,2759.0,21.72981]
[1749706994239,3.30409099,2759.1,2759.0,21.15]
[1749706995446,3.30409099,2759.1,2759.0,4.418]
[1749706995746,3.30409099,2759.1,2759.0,21.119]
[1749706995940,0.57983,2758.9,2758.8,21.898]
[1749706996144,5.23733099,2758.9,2758.8,42.974]
[1749706996339,5.23733099,2758.9,2758.8,26.274]
[1749706996539,5.23733099,2758.9,2758.8,42.973]
[1749706997048,5.23733099,2758.9,2758.8,26.274]
[1749706997237,5.23733099,2758.9,2758.5,0.5883]
[1749706997238,4.65750099,2758.9,2758.5,4.376]
[1749706997542,3.2078,2758.6,2758.5,4.95592]
[1749706997737,5.23740099,2758.6,2758.5,21.082]
[1749706998140,5.23740099,2758.6,2758.5,21.081]
[1749706999241,4.65750099,2758.6,2758.5,21.66092]
[1749706999937,5.23740099,2758.6,2758.5,21.081]
[1749707000246,4.65750099,2758.6,2758.5,21.66092]
[1749707000444,5.23740099,2758.6,2758.5,21.081]
[1749707000746,4.65750099,2758.6,2758.5,21.081]
[1749707000944,5.23740099,2758.6,2758.5,21.081]
[1749707001342,5.23740099,2758.6,2758.5,4.376]
[1749707001646,5.23740099,2758.6,2758.5,21.072]
[1749707003150,3.2078,2758.6,2758.5,21.072]
[1749707003348,3.7877,2758.6,2758.5,21.072]
[1749707003748,3.2078,2758.6,2758.5,21.65192]
[1749707003944,3.2078,2758.6,2758.5,21.072]
[1749707004143,3.7877,2758.6,2758.5,21.072]
[1749707004342,3.2078,2758.6,2758.5,21.65192]
[1749707004544,3.7877,2758.6,2758.5,21.65192]
[1749707004745,3.7877,2758.6,2758.5,21.072]
[1749707005751,0.2898,2759.6,2759.1,0.57979]
[1749707006051,0.2898,2759.6,2759.1,21.67179]
[1749707006346,0.2898,2759.6,2759.1,62.47179]
[1749707006547,0.00543114,2759.4,2759.1,64.35789]
[1749707007844,0.2898,2759.6,2759.5,0.57971]
[1749707008045,1.1937,2759.9,2759.5,24.3358]
[1749707008245,1.1937,2759.9,2759.8,0.57964]
[1749707008445,2.63617306,2759.9,2759.8,17.32964]
[1749707008949,2.63617306,2759.9,2759.5,7.5838]
[1749707008950,0.57967,2759.7,2759.5,3.2078]
[1749707009146,1.84665,2759.8,2759.6,21.126]
[1749707009744,0.57966,2759.7,2759.6,21.126]
[1749707010053,1.84666,2759.8,2759.6,21.126]
[1749707010550,1.84666,2759.8,2759.6,21.70568]
[1749707010751,0.57966,2759.8,2759.6,21.126]
[1749707011049,0.57968,2759.7,2759.5,3.2078]
[1749707011250,0.57968,2759.7,2759.6,21.134]
[1749707013559,1.85315,2759.8,2759.6,21.71369]
[1749707013751,0.57966,2759.7,2759.6,21.134]
[1749707016854,1.85315,2759.8,2759.6,21.71368]
[1749707018854,0.57966,2759.7,2759.6,21.71368]
[1749707021365,1.2735,2759.8,2759.6,21.71368]
[1749707021564,1.2735,2759.8,2759.7,0.57966]
[1749707022166,1.2735,2759.8,2759.6,21.71367]
[1749707022354,1.2735,2759.8,2759.6,4.95567]
[1749707022555,1.44921,2759.7,2759.5,4.383]
[1749707022761,0.57979,2759.1,2759.0,21.92]
[1749707022962,0.57979,2759.1,2759.0,26.303]
[1749707023255,0.57979,2759.1,2759.0,43.031]
[1749707027071,0.6304,2759.3,2759.0,43.031]
[1749707027371,0.57979,2759.1,2759.0,43.031]
[1749707027671,1.8268,2759.3,2759.0,43.031]
[1749707027872,0.57978,2759.2,2759.0,43.61081]
[1749707028566,0.57979,2759.1,2759.0,4.383]
[1749707028768,1.77619,2759.1,2759.0,4.383]
[1749707028967,0.57981,2759.0,2758.9,0.00543114]
[1749707029172,1.83091,2759.0,2758.9,16.72643114]
[1749707029365,1.83091,2759.0,2758.9,0.00543114]
[1749707029567,1.83091,2759.0,2758.9,16.72543114]
[1749707030165,1.83091,2759.0,2758.9,0.00543114]
[1749707030366,1.83091,2759.0,2758.9,16.72243114]
[1749707031773,1.83091,2759.0,2758.9,0.00543114]
[1749707032075,1.83091,2759.0,2758.9,16.71843114]
[1749707033574,3.27205115,2759.0,2758.9,0.00543114]
[1749707033774,3.27205115,2759.0,2758.9,16.71843114]
[1749707034175,3.27205115,2759.0,2758.9,16.71243114]
[1749707034673,3.88825115,2759.0,2758.9,16.71243114]
[1749707037576,3.88825115,2759.0,2758.9,0.00543114]
[1749707037781,3.88825115,2759.0,2758.9,16.70543114]
[1749707038275,3.88825115,2759.0,2758.9,0.00543114]
[1749707038487,3.88825115,2759.0,2758.9,16.70043114]
[1749707038783,3.88825115,2759.0,2758.9,0.00543114]
[1749707039175,3.88680951,2759.0,2758.9,0.00543114]
[1749707039982,3.88680951,2759.0,2758.9,0.06744834]
[1749707041083,3.88680951,2759.0,2758.9,0.00543114]
[1749707043880,2.44711,2759.0,2758.9,0.00543114]
[1749707045285,2.73701,2759.0,2758.9,0.00543114]
[1749707048288,4.18155936,2759.0,2758.9,0.00543114]
[1749707048887,0.86971,2759.0,2758.9,0.00543114]
[1749707049089,0.86971,2759.0,2758.9,0.64153114]
[1749707049390,0.86971,2759.0,2758.9,1.28337834]
[1749707049682,0.86971,2759.0,2758.9,1.92754834]
[1749707052592,0.86971,2759.0,2758.9,2.50737834]
[1749707052793,0.86971,2759.0,2758.9,1.92754834]
[1749707055296,0.2899,2759.0,2758.9,2.44536114]
[1749707055492,0.86971,2759.0,2758.9,1.86553114]
[1749707055695,0.2899,2759.0,2758.9,1.86553114]
[1749707055891,0.2899,2759.0,2758.9,7.44536114]
[1749707056385,0.2899,2759.0,2758.9,2.50737834]
[1749707058298,0.2899,2759.0,2758.9,2.44536114]
[1749707058997,0.57969,2759.6,2759.4,0.57972]
[1749707059193,0.57969,2759.6,2759.5,21.6083]
[1749707059798,0.57969,2759.6,2759.5,22.18801]
[1749707059996,0.57967,2759.7,2759.5,22.18801]
[1749707060200,0.57967,2759.7,2759.5,21.6083]
[1749707060600,0.57967,2759.7,2759.5,22.18799]
[1749707060900,0.57963,2759.9,2759.7,0.57965]
[1749707062004,0.57963,2759.9,2759.7,0.57966]
[1749707063006,3.7874,2760.0,2759.8,0.57963]
[1749707063307,3.7874,2760.0,2759.9,21.004]
[1749707063508,3.2078,2760.0,2759.5,0.6133]
[1749707063704,0.57963,2759.9,2759.7,0.57966]
[1749707063908,0.57963,2759.9,2759.8,20.996]
[1749707064405,0.57963,2759.9,2759.8,20.995]
[1749707064598,3.2078,2760.0,2759.8,20.994]
[1749707064803,0.57962,2759.9,2759.8,20.994]
[1749707065206,0.642,2759.9,2759.5,4.337]
[1749707065509,0.57975,2759.3,2759.1,1.21748]
[1749707065806,0.57975,2759.3,2759.1,0.6377]
[1749707066002,0.57974,2759.4,2759.2,43.50576]
[1749707066404,3.13172,2759.5,2759.3,0.57975]
[1749707066604,0.57973,2759.4,2759.2,43.50576]
[1749707068004,2.552,2759.5,2759.2,42.926]
[1749707068210,0.57974,2759.4,2759.2,43.50577]
[1749707068904,0.57975,2759.3,2759.2,42.926]
[1749707069305,1.86094,2759.4,2759.2,42.926]
[1749707070010,1.2812,2759.4,2759.2,22.49777]
[1749707070206,1.86093,2759.4,2759.3,21.002]
[1749707072406,1.2812,2759.4,2759.3,0.57975]
[1749707072606,1.2812,2759.4,2759.3,21.56975]
[1749707073501,1.2905,2759.5,2759.4,0.57973]
[1749707073714,0.642,2759.5,2759.4,0.57973]
[1749707074108,0.642,2759.5,2759.3,4.337]
[1749707074315,4.4472,2759.4,2759.0,4.327]
[1749707074614,3.78759,2759.1,2759.0,4.327]
[1749707075316,3.78759,2759.1,2759.0,21.0]
[1749707075515,4.39499,2759.1,2759.0,21.0]
[1749707075712,1.18719,2759.1,2759.0,21.0]
[1749707076213,1.18719,2759.1,2759.0,4.327]
[1749707076416,1.18719,2759.1,2759.0,20.996]
[1749707078118,2.62630035,2759.1,2759.0,20.996]
[1749707078812,0.57981,2759.0,2758.9,0.00543114]
[1749707079014,1.84351,2759.0,2758.9,20.99643114]
[1749707079412,1.84351,2759.0,2758.9,0.00543114]
[1749707079607,1.84351,2759.0,2758.9,20.99643114]
[1749707081123,0.6074,2759.1,2758.9,20.99643114]
[1749707081320,1.1872,2759.1,2758.9,21.57624114]
[1749707082213,0.57981,2759.0,2758.9,20.99643114]
[1749707083721,0.57981,2759.0,2758.9,21.57626114]
[1749707083914,0.57981,2759.0,2758.9,20.99643114]
[1749707085611,3.8062,2759.4,2759.2,0.57976]
[1749707085814,3.8062,2759.4,2759.3,20.978]
[1749707086016,4.38593,2759.4,2759.3,20.978]
[1749707087124,1.17813,2759.4,2759.3,20.978]
[1749707089025,0.57971,2759.5,2759.3,20.978]
[1749707089228,1.1977,2759.6,2759.4,0.57972]
[1749707089827,1.1977,2759.6,2759.4,1.16982]
[1749707090323,0.57971,2759.5,2759.4,0.5901]
[1749707092225,0.57973,2759.4,2759.3,0.0620172]
[1749707092424,1.82913,2759.4,2759.3,21.0320172]
[1749707093020,1.82913,2759.4,2759.3,0.0620172]
[1749707093223,1.82913,2759.4,2759.3,21.0280172]
[1749707094121,3.26895236,2759.4,2759.3,21.0280172]
[1749707097730,2.01955236,2759.4,2759.3,21.0280172]
[1749707098133,2.01955236,2759.4,2759.3,21.6077672]
[1749707098331,2.01955236,2759.4,2759.3,21.0280172]
[1749707098533,1.43982236,2759.4,2759.3,21.6077672]
[1749707098732,1.1615,2759.6,2759.3,21.0280172]
[1749707098933,2.01928595,2759.5,2759.3,21.6077572]
[1749707099133,0.57972,2759.5,2759.3,21.6077572]
[1749707100033,1.1615,2759.6,2759.3,21.0280172]
[1749707100234,1.44000082,2759.5,2759.3,21.0280172]
[1749707100530,0.57973,2759.4,2759.3,21.0280172]
[1749707100830,0.57972,2759.5,2759.3,21.6077672]
[1749707101036,0.57972,2759.5,2759.3,21.6077572]
[1749707101232,0.57972,2759.5,2759.4,0.6474]